[Event "*** SCC Grand Prix: Titled Tuesday Blitz"]
[Site "Chess.com"]
[Date "2020.10.13"]
[Round "10"]
[White "barbara25"]
[Black "PetrolulSah"]
[Result "0-1"]
[WhiteElo "2231"]
[BlackElo "2173"]
[TimeControl "180+1"]
[EndTime "11:54:30 PDT"]
[Termination "PetrolulSah won by resignation"]

1. e4 {[%clk 0:03:00.9]} 1... e5 {[%clk 0:02:59.8]} 2. Nf3 {[%clk 0:03:00]} 2...
Nf6 {[%clk 0:02:57.4]} 3. Nc3 {[%clk 0:02:58.8]} 3... Bb4 {[%clk 0:02:56.4]} 4.
d3 {[%clk 0:02:53.8]} 4... d5 {[%clk 0:02:54.4]} 5. exd5 {[%clk 0:02:52.9]} 5...
Nxd5 {[%clk 0:02:55.3]} 6. Bd2 {[%clk 0:02:51.7]} 6... O-O {[%clk 0:02:53.7]} 7.
Nxd5 {[%clk 0:02:50.1]} 7... Bxd2+ {[%clk 0:02:52.3]} 8. Qxd2 {[%clk 0:02:49.9]}
8... Qxd5 {[%clk 0:02:53.2]} 9. Be2 {[%clk 0:02:49]} 9... Nc6 {[%clk 0:02:52.6]}
10. O-O {[%clk 0:02:48.5]} 10... Bg4 {[%clk 0:02:52.3]} 11. h3 {[%clk
0:02:46.7]} 11... Bh5 {[%clk 0:02:48.4]} 12. Qe3 {[%clk 0:02:45.7]} 12... Nd4
{[%clk 0:02:43.5]} 13. Nxd4 {[%clk 0:02:44.8]} 13... exd4 {[%clk 0:02:42.4]} 14.
Qd2 {[%clk 0:02:44.8]} 14... Bxe2 {[%clk 0:02:39.9]} 15. Qxe2 {[%clk 0:02:45.7]}
15... Rae8 {[%clk 0:02:39.5]} 16. Qd2 {[%clk 0:02:43.8]} 16... Re5 {[%clk
0:02:37.8]} 17. Qb4 {[%clk 0:02:36.4]} 17... c5 {[%clk 0:02:34.9]} 18. Qa5
{[%clk 0:02:33.9]} 18... a6 {[%clk 0:02:31.2]} 19. b3 {[%clk 0:02:31.9]} 19...
Re2 {[%clk 0:02:24.7]} 20. Rac1 {[%clk 0:02:29.3]} 20... Rfe8 {[%clk 0:02:21.1]}
21. Qc7 {[%clk 0:02:28.4]} 21... h6 {[%clk 0:02:15.2]} 22. a4 {[%clk 0:02:25.1]}
22... Rd2 {[%clk 0:02:06.5]} 23. Rfd1 {[%clk 0:02:09.9]} 23... Ree2 {[%clk
0:02:01.7]} 24. Rxd2 {[%clk 0:02:10.2]} 24... Rxd2 {[%clk 0:02:01.7]} 25. Qf4
{[%clk 0:02:10.5]} 25... Re2 {[%clk 0:01:57.7]} 26. c3 {[%clk 0:02:07.1]} 26...
dxc3 {[%clk 0:01:15.4]} 27. Rxc3 {[%clk 0:02:06.2]} 27... b5 {[%clk 0:01:08.3]}
28. axb5 {[%clk 0:02:05]} 28... axb5 {[%clk 0:01:08.1]} 29. Rc1 {[%clk
0:02:01.6]} 29... Qe5 {[%clk 0:00:52.8]} 30. Qxe5 {[%clk 0:01:57.3]} 30... Rxe5
{[%clk 0:00:52.7]} 31. Kf1 {[%clk 0:01:55]} 31... Kf8 {[%clk 0:00:50.7]} 32. Ra1
{[%clk 0:01:54.8]} 32... Ke7 {[%clk 0:00:49.3]} 33. Ra5 {[%clk 0:01:53.9]} 33...
b4 {[%clk 0:00:48.5]} 34. Rb5 {[%clk 0:01:53.8]} 34... Kd6 {[%clk 0:00:47.4]}
35. Rb7 {[%clk 0:01:53.1]} 35... Rf5 {[%clk 0:00:46.1]} 36. Ke2 {[%clk
0:01:52.4]} 36... Kd5 {[%clk 0:00:43.8]} 37. Ke3 {[%clk 0:01:52.7]} 37... g5
{[%clk 0:00:41]} 38. f3 {[%clk 0:01:52.2]} 38... Re5+ {[%clk 0:00:41]} 39. Kd2
{[%clk 0:01:50.5]} 39... f5 {[%clk 0:00:41]} 40. Rh7 {[%clk 0:01:50.4]} 40...
Re6 {[%clk 0:00:40.8]} 41. Rf7 {[%clk 0:01:49.2]} 41... f4 {[%clk 0:00:38]} 42.
Rh7 {[%clk 0:01:48.1]} 42... Ra6 {[%clk 0:00:32.6]} 43. Kc1 {[%clk 0:01:43.3]}
43... Ra2 {[%clk 0:00:28.7]} 44. Rxh6 {[%clk 0:01:43.1]} 44... Rxg2 {[%clk
0:00:28.6]} 45. Rg6 {[%clk 0:01:43.3]} 45... Rg3 {[%clk 0:00:28.6]} 46. Kd2
{[%clk 0:01:41.5]} 46... Kd4 {[%clk 0:00:27.3]} 47. Rd6+ {[%clk 0:01:41.1]}
47... Ke5 {[%clk 0:00:27.3]} 48. Rg6 {[%clk 0:01:39]} 48... Rxf3 {[%clk
0:00:24.6]} 49. Rxg5+ {[%clk 0:01:37.9]} 49... Kd4 {[%clk 0:00:24.7]} 50. h4
{[%clk 0:01:35.5]} 50... Rxd3+ {[%clk 0:00:24.4]} 51. Ke2 {[%clk 0:01:35.7]}
51... Re3+ {[%clk 0:00:23.8]} 52. Kf2 {[%clk 0:01:34.8]} 52... Rxb3 {[%clk
0:00:23.3]} 53. Kg2 {[%clk 0:01:33.7]} 53... Ra3 {[%clk 0:00:19.7]} 54. h5
{[%clk 0:01:33.2]} 54... Ra7 {[%clk 0:00:19.6]} 55. h6 {[%clk 0:01:28.6]} 55...
Rh7 {[%clk 0:00:19.1]} 56. Rg6 {[%clk 0:01:27.6]} 56... b3 {[%clk 0:00:19.2]}
57. Kf3 {[%clk 0:01:27.2]} 57... b2 {[%clk 0:00:19.2]} 58. Rb6 {[%clk
0:01:27.1]} 58... Kc3 {[%clk 0:00:19.2]} 59. Kxf4 {[%clk 0:01:27.4]} 59... Rxh6
{[%clk 0:00:18.6]} 60. Rb5 {[%clk 0:01:27]} 60... c4 {[%clk 0:00:18.2]} 61. Ke3
{[%clk 0:01:26.4]} 61... Kc2 {[%clk 0:00:18.1]} 0-1

[Event "*** SCC Grand Prix: Titled Tuesday Blitz"]
[Site "Chess.com"]
[Date "2020.10.13"]
[Round "10"]
[White "ShcufNaiRolf"]
[Black "Zq1"]
[Result "0-1"]
[WhiteElo "2326"]
[BlackElo "2518"]
[TimeControl "180+1"]
[EndTime "11:54:31 PDT"]
[Termination "Zq1 won by resignation"]

1. e4 {[%clk 0:02:59.2]} 1... c5 {[%clk 0:02:59.3]} 2. Nf3 {[%clk 0:02:56.8]}
2... d6 {[%clk 0:02:59]} 3. d4 {[%clk 0:02:54.9]} 3... cxd4 {[%clk 0:02:59.1]}
4. Nxd4 {[%clk 0:02:54.9]} 4... Nf6 {[%clk 0:02:59.3]} 5. Nc3 {[%clk 0:02:54]}
5... Nc6 {[%clk 0:02:59.4]} 6. Bg5 {[%clk 0:02:53.1]} 6... e6 {[%clk 0:02:58.6]}
7. Qd2 {[%clk 0:02:51.9]} 7... Be7 {[%clk 0:02:58.4]} 8. O-O-O {[%clk
0:02:51.1]} 8... O-O {[%clk 0:02:58.1]} 9. f4 {[%clk 0:02:45.9]} 9... h6 {[%clk
0:02:57.6]} 10. h4 {[%clk 0:02:44.8]} 10... Nxd4 {[%clk 0:02:53.4]} 11. Qxd4
{[%clk 0:02:42.1]} 11... Qa5 {[%clk 0:02:51.9]} 12. Be2 {[%clk 0:02:39.4]} 12...
e5 {[%clk 0:02:50.7]} 13. Qe3 {[%clk 0:02:31.9]} 13... exf4 {[%clk 0:02:50.1]}
14. Bxf4 {[%clk 0:02:28.7]} 14... Be6 {[%clk 0:02:48.8]} 15. g4 {[%clk
0:01:50.9]} 15... Rfc8 {[%clk 0:02:32.9]} 16. g5 {[%clk 0:01:48.6]} 16... Rxc3
{[%clk 0:02:25.1]} 17. bxc3 {[%clk 0:01:41]} 17... Qa3+ {[%clk 0:01:51.4]} 18.
Kd2 {[%clk 0:01:39.6]} 18... Ng4 {[%clk 0:01:51.4]} 19. Bxg4 {[%clk 0:01:31.9]}
19... Bxg4 {[%clk 0:01:51.3]} 20. gxh6 {[%clk 0:01:22.7]} 20... Bxd1 {[%clk
0:01:50]} 21. Rxd1 {[%clk 0:01:16.1]} 21... Qc5 {[%clk 0:01:42.2]} 22. Rg1
{[%clk 0:00:37.5]} 22... Qxe3+ {[%clk 0:01:35.9]} 23. Kxe3 {[%clk 0:00:36.8]}
23... g6 {[%clk 0:01:35.9]} 24. h5 {[%clk 0:00:34.1]} 24... Kh7 {[%clk 0:01:35]}
25. hxg6+ {[%clk 0:00:34.3]} 25... fxg6 {[%clk 0:01:33.8]} 26. Rd1 {[%clk
0:00:33.4]} 26... Rd8 {[%clk 0:01:22.6]} 27. c4 {[%clk 0:00:29.3]} 27... g5
{[%clk 0:01:21.6]} 28. Bg3 {[%clk 0:00:28.5]} 28... Kxh6 {[%clk 0:01:21.3]} 29.
Rd5 {[%clk 0:00:14.7]} 29... Kg6 {[%clk 0:01:16]} 30. Kf3 {[%clk 0:00:14.2]}
30... Kf7 {[%clk 0:01:12.9]} 31. Kg4 {[%clk 0:00:14.3]} 31... Ke6 {[%clk
0:01:12.4]} 32. e5 {[%clk 0:00:12.1]} 32... b6 {[%clk 0:01:04.7]} 33. exd6
{[%clk 0:00:10.6]} 33... Bxd6 {[%clk 0:01:04]} 34. Bf2 {[%clk 0:00:03.8]} 34...
Be7 {[%clk 0:00:58.7]} 35. Rxd8 {[%clk 0:00:01.7]} 35... Bxd8 {[%clk 0:00:58.7]}
36. Be3 {[%clk 0:00:02.2]} 36... Be7 {[%clk 0:00:45.5]} 37. c5 {[%clk
0:00:01.5]} 37... bxc5 {[%clk 0:00:42.9]} 38. c4 {[%clk 0:00:02]} 38... Ke5
{[%clk 0:00:42.4]} 39. Bd2 {[%clk 0:00:01.6]} 39... Kd4 {[%clk 0:00:41.2]} 0-1

[Event "*** SCC Grand Prix: Titled Tuesday Blitz"]
[Site "Chess.com"]
[Date "2020.10.13"]
[Round "10"]
[White "PawnEatingZombie"]
[Black "Flopezin"]
[Result "0-1"]
[WhiteElo "2197"]
[BlackElo "2367"]
[TimeControl "180+1"]
[EndTime "11:54:33 PDT"]
[Termination "Flopezin won by resignation"]

1. d4 {[%clk 0:03:00.9]} 1... Nf6 {[%clk 0:03:00.4]} 2. c4 {[%clk 0:03:00.8]}
2... e6 {[%clk 0:03:00.8]} 3. Nc3 {[%clk 0:03:01.3]} 3... Bb4 {[%clk 0:03:00.8]}
4. Qc2 {[%clk 0:03:01.9]} 4... O-O {[%clk 0:03:00.5]} 5. e4 {[%clk 0:03:01.2]}
5... d5 {[%clk 0:03:00.6]} 6. e5 {[%clk 0:03:01.1]} 6... Ne4 {[%clk 0:03:01.3]}
7. Bd3 {[%clk 0:03:01.5]} 7... c5 {[%clk 0:03:01.4]} 8. Nf3 {[%clk 0:03:02]}
8... cxd4 {[%clk 0:03:01.9]} 9. Nxd4 {[%clk 0:03:02.9]} 9... Nd7 {[%clk
0:03:02.4]} 10. Bf4 {[%clk 0:03:01]} 10... Qh4 {[%clk 0:03:02.3]} 11. g3 {[%clk
0:03:00.7]} 11... Qh5 {[%clk 0:03:02.4]} 12. h4 {[%clk 0:03:00.4]} 12... Nxe5
{[%clk 0:02:53.2]} 13. Be2 {[%clk 0:02:59.7]} 13... Qg6 {[%clk 0:02:47.1]} 14.
Bxe5 {[%clk 0:02:46.7]} 14... f6 {[%clk 0:02:46.9]} 15. Bf4 {[%clk 0:01:58.8]}
15... e5 {[%clk 0:02:46.6]} 16. cxd5 {[%clk 0:01:56.4]} 16... exf4 {[%clk
0:02:14.9]} 17. Bd3 {[%clk 0:01:39.9]} 17... Re8 {[%clk 0:02:07.8]} 18. O-O-O
{[%clk 0:01:37.2]} 18... Bxc3 {[%clk 0:02:07.9]} 19. bxc3 {[%clk 0:01:35.9]}
19... fxg3 {[%clk 0:01:57.3]} 20. h5 {[%clk 0:01:32.7]} 20... Qg5+ {[%clk
0:01:47]} 21. Kb1 {[%clk 0:01:19.6]} 21... Nxf2 {[%clk 0:01:45.7]} 22. Bxh7+
{[%clk 0:01:17]} 22... Kh8 {[%clk 0:01:43.6]} 23. Nf3 {[%clk 0:00:54.6]} 23...
Qh6 {[%clk 0:01:41.2]} 24. Bg6 {[%clk 0:00:44.6]} 24... Nxd1 {[%clk 0:01:39.6]}
25. Rxd1 {[%clk 0:00:31.2]} 25... Bg4 {[%clk 0:01:37]} 26. Bxe8 {[%clk
0:00:28.1]} 26... Rxe8 {[%clk 0:01:36]} 27. Nh4 {[%clk 0:00:23.6]} 27... Bxd1
{[%clk 0:01:13.3]} 28. Ng6+ {[%clk 0:00:21.2]} 28... Kg8 {[%clk 0:01:13.3]} 29.
Qxd1 {[%clk 0:00:20.6]} 29... Qe3 {[%clk 0:01:10.3]} 30. d6 {[%clk 0:00:18.8]}
30... g2 {[%clk 0:00:48.8]} 31. Qd5+ {[%clk 0:00:14.3]} 31... Qe6 {[%clk
0:00:42.5]} 32. Qxg2 {[%clk 0:00:13.6]} 32... Qxd6 {[%clk 0:00:41]} 33. h6
{[%clk 0:00:11.1]} 33... Qd1+ {[%clk 0:00:30.8]} 34. Kb2 {[%clk 0:00:09.2]}
34... Re2+ {[%clk 0:00:31.1]} 35. Qxe2 {[%clk 0:00:08.8]} 35... Qxe2+ {[%clk
0:00:30.2]} 0-1

[Event "*** SCC Grand Prix: Titled Tuesday Blitz"]
[Site "Chess.com"]
[Date "2020.10.13"]
[Round "10"]
[White "wannabe2700"]
[Black "MathiasWomacka"]
[Result "0-1"]
[WhiteElo "2684"]
[BlackElo "2508"]
[TimeControl "180+1"]
[EndTime "11:54:36 PDT"]
[Termination "MathiasWomacka won by resignation"]

1. d4 {[%clk 0:03:00.9]} 1... Nf6 {[%clk 0:02:58.4]} 2. c4 {[%clk 0:03:00.4]}
2... e6 {[%clk 0:02:58.4]} 3. Nc3 {[%clk 0:02:42.9]} 3... Bb4 {[%clk 0:02:57.2]}
4. f3 {[%clk 0:02:38.8]} 4... O-O {[%clk 0:02:55.8]} 5. e4 {[%clk 0:02:38.4]}
5... d5 {[%clk 0:02:55.6]} 6. e5 {[%clk 0:02:12.8]} 6... Nfd7 {[%clk 0:02:55.1]}
7. cxd5 {[%clk 0:02:04.4]} 7... exd5 {[%clk 0:02:56]} 8. Bd3 {[%clk 0:02:02.2]}
8... c5 {[%clk 0:02:38.4]} 9. Ne2 {[%clk 0:01:53.2]} 9... cxd4 {[%clk
0:02:36.6]} 10. Nxd4 {[%clk 0:01:52.8]} 10... Nxe5 {[%clk 0:02:35]} 11. O-O
{[%clk 0:01:51.3]} 11... Nbc6 {[%clk 0:02:17]} 12. Nxc6 {[%clk 0:01:15]} 12...
bxc6 {[%clk 0:02:16.3]} 13. Be3 {[%clk 0:01:14.6]} 13... d4 {[%clk 0:02:04]} 14.
Bxh7+ {[%clk 0:00:58.4]} 14... Kxh7 {[%clk 0:02:02.7]} 15. Bxd4 {[%clk
0:00:59.3]} 15... Ng6 {[%clk 0:01:53.3]} 16. Ne4 {[%clk 0:00:57.1]} 16... Bf5
{[%clk 0:01:41.5]} 17. Ng3 {[%clk 0:00:55]} 17... Be6 {[%clk 0:01:38.9]} 18. f4
{[%clk 0:00:47.5]} 18... c5 {[%clk 0:01:38.1]} 19. Qh5+ {[%clk 0:00:44.5]} 19...
Kg8 {[%clk 0:01:37.4]} 20. Be3 {[%clk 0:00:45]} 20... Qd3 {[%clk 0:01:31.3]} 21.
Bc1 {[%clk 0:00:35.4]} 21... Bc4 {[%clk 0:00:56.9]} 22. f5 {[%clk 0:00:35.1]}
22... Qd4+ {[%clk 0:00:52.5]} 23. Rf2 {[%clk 0:00:34.8]} 23... Be1 {[%clk
0:00:49.3]} 24. fxg6 {[%clk 0:00:15.3]} 24... Bxf2+ {[%clk 0:00:42.3]} 25. Kh1
{[%clk 0:00:15.3]} 25... fxg6 {[%clk 0:00:42.7]} 26. Qxg6 {[%clk 0:00:06.8]}
26... Bxg3 {[%clk 0:00:39.7]} 27. Bh6 {[%clk 0:00:02.9]} 27... Be5 {[%clk
0:00:29.5]} 28. h4 {[%clk 0:00:01.7]} 28... Qxh4+ {[%clk 0:00:25.1]} 29. Kg1
{[%clk 0:00:01.3]} 29... Bd4+ {[%clk 0:00:24.5]} 0-1

[Event "*** SCC Grand Prix: Titled Tuesday Blitz"]
[Site "Chess.com"]
[Date "2020.10.13"]
[Round "10"]
[White "Manukyan_Artak"]
[Black "chenxiaoyuer"]
[Result "0-1"]
[WhiteElo "2331"]
[BlackElo "2527"]
[TimeControl "180+1"]
[EndTime "11:54:37 PDT"]
[Termination "chenxiaoyuer won by checkmate"]

1. e4 {[%clk 0:03:00.9]} 1... c5 {[%clk 0:02:59.9]} 2. Nf3 {[%clk 0:03:00.1]}
2... d6 {[%clk 0:03:00.2]} 3. Bb5+ {[%clk 0:02:59.1]} 3... Nd7 {[%clk 0:03:00]}
4. O-O {[%clk 0:02:58.4]} 4... Nf6 {[%clk 0:03:00.1]} 5. Re1 {[%clk 0:02:58.1]}
5... a6 {[%clk 0:02:59.5]} 6. Bd3 {[%clk 0:02:56]} 6... g6 {[%clk 0:02:55.2]} 7.
a4 {[%clk 0:02:51.2]} 7... Bg7 {[%clk 0:02:53.1]} 8. c3 {[%clk 0:02:49.4]} 8...
O-O {[%clk 0:02:52.9]} 9. Bc2 {[%clk 0:02:49.3]} 9... c4 {[%clk 0:02:47]} 10. d4
{[%clk 0:02:27.8]} 10... cxd3 {[%clk 0:02:44.7]} 11. Qxd3 {[%clk 0:02:26.9]}
11... Nc5 {[%clk 0:02:44.1]} 12. Qe2 {[%clk 0:02:26.8]} 12... Bg4 {[%clk
0:02:30.3]} 13. h3 {[%clk 0:02:20]} 13... Bxf3 {[%clk 0:02:28.3]} 14. Qxf3
{[%clk 0:02:20.9]} 14... Nfd7 {[%clk 0:02:24.9]} 15. Qe2 {[%clk 0:02:07.1]}
15... Ne5 {[%clk 0:02:13.8]} 16. f4 {[%clk 0:02:05.3]} 16... Nc6 {[%clk
0:02:13]} 17. Nd2 {[%clk 0:01:58.5]} 17... Rb8 {[%clk 0:02:04]} 18. Nf3 {[%clk
0:01:36.6]} 18... b5 {[%clk 0:02:00.5]} 19. axb5 {[%clk 0:01:35]} 19... axb5
{[%clk 0:02:01.1]} 20. e5 {[%clk 0:01:28.9]} 20... dxe5 {[%clk 0:01:47.3]} 21.
fxe5 {[%clk 0:01:29.8]} 21... Ne6 {[%clk 0:01:23.6]} 22. Bb3 {[%clk 0:00:56.4]}
22... Qc8 {[%clk 0:01:12.7]} 23. h4 {[%clk 0:00:24.4]} 23... b4 {[%clk
0:01:05.6]} 24. Bxe6 {[%clk 0:00:17]} 24... Qxe6 {[%clk 0:01:02.7]} 25. Bf4
{[%clk 0:00:17.1]} 25... bxc3 {[%clk 0:01:00]} 26. bxc3 {[%clk 0:00:18]} 26...
Ra8 {[%clk 0:00:57.1]} 27. Rxa8 {[%clk 0:00:16.6]} 27... Rxa8 {[%clk 0:00:58]}
28. Ng5 {[%clk 0:00:16.9]} 28... Qd5 {[%clk 0:00:47.1]} 29. e6 {[%clk
0:00:15.3]} 29... f6 {[%clk 0:00:42]} 30. Nf3 {[%clk 0:00:09.9]} 30... Ra2
{[%clk 0:00:33.7]} 31. Qe4 {[%clk 0:00:07.6]} 31... Qc5+ {[%clk 0:00:31.6]} 32.
Qe3 {[%clk 0:00:05.5]} 32... Qf5 {[%clk 0:00:28.1]} 33. Qe4 {[%clk 0:00:02.5]}
33... Qg4 {[%clk 0:00:23.4]} 34. Qxc6 {[%clk 0:00:02.1]} 34... Qxg2# {[%clk
0:00:22.4]} 0-1

[Event "*** SCC Grand Prix: Titled Tuesday Blitz"]
[Site "Chess.com"]
[Date "2020.10.13"]
[Round "10"]
[White "anpospan"]
[Black "FMalexhdez"]
[Result "1-0"]
[WhiteElo "2385"]
[BlackElo "2271"]
[TimeControl "180+1"]
[EndTime "11:54:39 PDT"]
[Termination "anpospan won on time"]

1. Nf3 {[%clk 0:03:00.9]} 1... d5 {[%clk 0:02:58.3]} 2. g3 {[%clk 0:03:01.3]}
2... Nf6 {[%clk 0:02:57.7]} 3. Bg2 {[%clk 0:03:01.7]} 3... g6 {[%clk 0:02:57.7]}
4. O-O {[%clk 0:03:02.1]} 4... Bg7 {[%clk 0:02:58.2]} 5. d4 {[%clk 0:03:02.2]}
5... O-O {[%clk 0:02:55.9]} 6. Nbd2 {[%clk 0:03:02.1]} 6... c6 {[%clk
0:02:55.5]} 7. c3 {[%clk 0:03:00.5]} 7... a5 {[%clk 0:02:53.2]} 8. Ne5 {[%clk
0:02:59.8]} 8... Nfd7 {[%clk 0:02:51.5]} 9. f4 {[%clk 0:02:58.4]} 9... Nxe5
{[%clk 0:02:51.3]} 10. fxe5 {[%clk 0:02:57.6]} 10... f6 {[%clk 0:02:44.5]} 11.
exf6 {[%clk 0:02:56]} 11... Rxf6 {[%clk 0:02:41.4]} 12. Rxf6 {[%clk 0:02:54.3]}
12... exf6 {[%clk 0:02:31.9]} 13. e4 {[%clk 0:02:54.3]} 13... Be6 {[%clk
0:02:27.1]} 14. Qb3 {[%clk 0:02:46.5]} 14... Qd7 {[%clk 0:02:14.1]} 15. exd5
{[%clk 0:02:43.4]} 15... Bxd5 {[%clk 0:01:57.7]} 16. Bxd5+ {[%clk 0:02:42.3]}
16... cxd5 {[%clk 0:01:57.8]} 17. Ne4 {[%clk 0:02:36.5]} 17... a4 {[%clk
0:01:47.1]} 18. Qc2 {[%clk 0:02:11.2]} 18... dxe4 {[%clk 0:01:45.8]} 19. Qxe4
{[%clk 0:02:11.3]} 19... Nc6 {[%clk 0:01:45.6]} 20. Bf4 {[%clk 0:02:11]} 20...
Re8 {[%clk 0:01:43.1]} 21. Qc2 {[%clk 0:02:10.8]} 21... Ne7 {[%clk 0:01:36.7]}
22. Re1 {[%clk 0:02:06.1]} 22... Nd5 {[%clk 0:01:34.9]} 23. Rxe8+ {[%clk
0:02:05.4]} 23... Qxe8 {[%clk 0:01:35]} 24. Kf2 {[%clk 0:02:01.1]} 24... f5
{[%clk 0:01:21.4]} 25. Qd3 {[%clk 0:01:49.3]} 25... Qe4 {[%clk 0:01:15.9]} 26.
Qc4 {[%clk 0:01:49.1]} 26... h6 {[%clk 0:01:04.5]} 27. Qc8+ {[%clk 0:01:34.1]}
27... Kh7 {[%clk 0:01:04.3]} 28. Qxb7 {[%clk 0:01:33.4]} 28... Nxf4 {[%clk
0:00:40.7]} 29. Qxe4 {[%clk 0:01:30.4]} 29... Nh3+ {[%clk 0:00:40.7]} 30. Kg2
{[%clk 0:01:26.4]} 30... fxe4 {[%clk 0:00:41.2]} 31. Kxh3 {[%clk 0:01:26.5]}
31... g5 {[%clk 0:00:33.9]} 32. Kg2 {[%clk 0:01:19.7]} 32... Kg6 {[%clk
0:00:33.8]} 33. g4 {[%clk 0:01:16.8]} 33... Kf6 {[%clk 0:00:20.6]} 34. Kf2
{[%clk 0:01:16.1]} 34... Ke6 {[%clk 0:00:17.9]} 35. Ke3 {[%clk 0:01:14.4]} 35...
Kd5 {[%clk 0:00:11.2]} 36. b3 {[%clk 0:01:14.3]} 36... a3 {[%clk 0:00:10.9]} 37.
c4+ {[%clk 0:01:13.1]} 37... Ke6 {[%clk 0:00:06.2]} 38. Kxe4 {[%clk 0:01:12.6]}
38... Bf8 {[%clk 0:00:06]} 39. c5 {[%clk 0:01:09.4]} 39... Kd7 {[%clk
0:00:02.3]} 40. Kd5 {[%clk 0:01:06.5]} 40... Be7 {[%clk 0:00:01.8]} 41. b4
{[%clk 0:01:05.3]} 41... Bf6 {[%clk 0:00:01.4]} 42. b5 {[%clk 0:01:04.4]} 42...
Kc7 {[%clk 0:00:01.6]} 43. b6+ {[%clk 0:00:59.6]} 43... Kb7 {[%clk 0:00:01.4]}
44. h3 {[%clk 0:00:56.4]} 1-0

[Event "*** SCC Grand Prix: Titled Tuesday Blitz"]
[Site "Chess.com"]
[Date "2020.10.13"]
[Round "10"]
[White "tsvet2005"]
[Black "AlexSuv"]
[Result "1-0"]
[WhiteElo "2717"]
[BlackElo "2538"]
[TimeControl "180+1"]
[EndTime "11:54:40 PDT"]
[Termination "tsvet2005 won by checkmate"]

1. d4 {[%clk 0:03:00.9]} 1... Nf6 {[%clk 0:02:58.4]} 2. c4 {[%clk 0:03:01.1]}
2... e6 {[%clk 0:02:57.9]} 3. Nc3 {[%clk 0:03:00.8]} 3... Bb4 {[%clk 0:02:57]}
4. f3 {[%clk 0:03:01.1]} 4... d5 {[%clk 0:02:56.1]} 5. a3 {[%clk 0:03:01.2]}
5... Bxc3+ {[%clk 0:02:55.5]} 6. bxc3 {[%clk 0:03:02.1]} 6... O-O {[%clk
0:02:55.8]} 7. cxd5 {[%clk 0:03:02.6]} 7... exd5 {[%clk 0:02:56.2]} 8. e3 {[%clk
0:03:03]} 8... c5 {[%clk 0:02:56.6]} 9. Bd3 {[%clk 0:03:03.3]} 9... b6 {[%clk
0:02:54.6]} 10. Ne2 {[%clk 0:03:02.6]} 10... Ba6 {[%clk 0:02:54.1]} 11. O-O
{[%clk 0:03:02.6]} 11... Re8 {[%clk 0:02:53.9]} 12. Ng3 {[%clk 0:03:02.6]} 12...
Bxd3 {[%clk 0:02:50.3]} 13. Qxd3 {[%clk 0:03:03.5]} 13... Nc6 {[%clk 0:02:51]}
14. Bb2 {[%clk 0:03:03.3]} 14... h5 {[%clk 0:02:50]} 15. Rad1 {[%clk 0:03:03]}
15... Rc8 {[%clk 0:02:44.6]} 16. Nh1 {[%clk 0:02:59.8]} 16... Qe7 {[%clk
0:02:42.2]} 17. Rfe1 {[%clk 0:02:59.4]} 17... h4 {[%clk 0:02:31.3]} 18. Nf2
{[%clk 0:02:59.2]} 18... Nh5 {[%clk 0:02:30.1]} 19. Qf5 {[%clk 0:02:41.1]} 19...
Nf6 {[%clk 0:01:48.8]} 20. e4 {[%clk 0:02:37.8]} 20... cxd4 {[%clk 0:01:45.1]}
21. cxd4 {[%clk 0:02:36.8]} 21... Rcd8 {[%clk 0:01:38.2]} 22. e5 {[%clk
0:02:23.8]} 22... Nh7 {[%clk 0:01:33]} 23. Bc1 {[%clk 0:02:13.4]} 23... Rc8
{[%clk 0:00:58.8]} 24. f4 {[%clk 0:01:47.9]} 24... g6 {[%clk 0:00:16.2]} 25. Qd3
{[%clk 0:01:47.6]} 25... Qe6 {[%clk 0:00:15.1]} 26. Qf3 {[%clk 0:01:44.1]} 26...
Ne7 {[%clk 0:00:14.5]} 27. g4 {[%clk 0:01:33.8]} 27... hxg3 {[%clk 0:00:14.2]}
28. hxg3 {[%clk 0:01:34.7]} 28... Rc2 {[%clk 0:00:12.6]} 29. g4 {[%clk
0:01:26.4]} 29... Rec8 {[%clk 0:00:12.4]} 30. Qg3 {[%clk 0:01:26.3]} 30... Qd7
{[%clk 0:00:10.3]} 31. Be3 {[%clk 0:01:15.6]} 31... Kf8 {[%clk 0:00:08.5]} 32.
Qh4 {[%clk 0:01:12.8]} 32... Kg8 {[%clk 0:00:08.4]} 33. Kh1 {[%clk 0:01:04.4]}
33... R2c3 {[%clk 0:00:06.5]} 34. Kg2 {[%clk 0:00:49.2]} 34... Kg7 {[%clk
0:00:05]} 35. f5 {[%clk 0:00:45.4]} 35... gxf5 {[%clk 0:00:03.9]} 36. Qh6+
{[%clk 0:00:45.3]} 36... Kg8 {[%clk 0:00:02.2]} 37. Rh1 {[%clk 0:00:45.7]} 37...
fxg4 {[%clk 0:00:02.2]} 38. Qxh7+ {[%clk 0:00:43.5]} 38... Kf8 {[%clk
0:00:03.1]} 39. Bh6+ {[%clk 0:00:42.1]} 39... Ke8 {[%clk 0:00:03.5]} 40. Qh8+
{[%clk 0:00:42.3]} 40... Ng8 {[%clk 0:00:03.9]} 41. Qxg8+ {[%clk 0:00:42.8]}
41... Ke7 {[%clk 0:00:04.8]} 42. Bg5+ {[%clk 0:00:42.1]} 42... Ke6 {[%clk
0:00:05.3]} 43. Rh6+ {[%clk 0:00:41.7]} 43... Kf5 {[%clk 0:00:06.2]} 44. Rf6#
{[%clk 0:00:42.3]} 1-0